[Event "WWRR IM 2018"]
[Site "Wachtebeke"]
[Date "2018.02.12"]
[Round "5"]
[White "Hummel, Joop"]
[Black "Van Malder, Dries"]
[Result "1/2-1/2"]
[ECO "E14"]
[WhiteElo "1975"]
[BlackElo "2032"]
[Annotator "NA RC"]
[PlyCount "62"]
[EventDate "2018.??.??"]
[EventCountry "BEL"]
[SourceTitle "playchess.com"]
[Source "ChessBase"]
[SourceQuality "1"]
[TimeControl "40/5400+30:900+30"]

{[%evp 9,62,1,32767,0,26,9,20,19,29,44,35,14,19,14,0,23,45,45,55,51,61,62,47,53,97,0,0,-3,-7,-44,-42,-61,-62,-56,-66,-60,-72,-67,-62,-85,-54,-139,-8,-12,-12,-31,-22,-76,0,-14,0,0,32767,0,0]} 1. Nf3 {[%emt 0:00:12]} Nf6 {[%emt 0:00:13]} 2. d4 {[%emt 0:00:36]} e6 {[%emt 0:00:24]} 3. e3 {[%emt 0:01:42]} c5 {[%emt 0:00:51]} 4. Bd3 {[%emt 0:01:28]} b6 {[%emt 0:01:06]} 5. O-O {[%emt 0:00:14]} Bb7 {[%emt 0:00:04]} 6. c4 {[%emt 0:02:27]} cxd4 {[%emt 0:00:45]} 7. exd4 {[%emt 0:00:03] E14: Queen's Indian: Classical Variation (4 e3)} d5 {[%emt 0:00:52]} 8. Nc3 {[%emt 0:02:43]} Nbd7 {[%emt 0:00:51]} 9. cxd5 {[%emt 0:04:43]} Nxd5 {[%emt 0:00:31]} 10. Bb5 $146 {[%emt 0:13:17]} ({Predecessor:} 10. Nxd5 Bxd5 11. Ne5 Nxe5 12. dxe5 Bc6 13. Re1 Bc5 14. Be3 Qd5 {0-1 (30) Panelo Munoz,M (2388)-Cori Tello,J (2648) Vallfogona de Balague 2017}) 10... a6 {[%emt 0:04:33]} 11. Bxd7+ {[%emt 0:01:33]} Qxd7 {[%emt 0:00:19]} 12. Ne5 {[%emt 0:00:02]} Nxc3 {[%emt 0:02:00]} 13. Nxd7 {[%emt 0:05:28]} Nxd1 {[%emt 0:00:25]} 14. Nxb6 {[%emt 0:00:02]} Rd8 {[%emt 0:02:43]} 15. Rxd1 {[%emt 0:00:29]} Bc5 {[%emt 0:00:35]} 16. Nc4 {[%emt 0:01:56]} Bxd4 {[%emt 0:04:24] [#]} 17. Be3 {[%emt 0:00:16]} (17. Bf4 $1 $16) 17... Bxe3 {[%emt 0:01:13]} 18. Rxd8+ {[%emt 0:00:20]} Kxd8 {[%emt 0:00:09]} 19. fxe3 {[%emt 0:06:19]} Ke7 {[%emt 0:03:19]} 20. Rd1 {[%emt 0:05:00]} Bd5 {[%emt 0:09:27]} 21. Nb6 {[%emt 0:07:34]} Bxa2 {[%emt 0:01:11]} 22. Rd7+ {[%emt 0:00:08]} Kf6 {[%emt 0:00:10]} 23. Ra7 {[%emt 0:00:10]} Rd8 {[%emt 0:01:29]} 24. Nd7+ {[%emt 0:02:51]} Kf5 {[%emt 0:09:36]} 25. Kf2 {[%emt 0:01:26]} ({Better is} 25. h3 $15) 25... Bc4 {[%emt 0:07:26] [#]} (25... Rc8 $17 26. Kg3 Rc2) 26. g4+ $1 {[%emt 0:00:30]} Ke4 {[%emt 0:10:36]} 27. Nc5+ {[%emt 0:03:13]} Kd5 {[%emt 0:01:23]} 28. Na4 {[%emt 0:01:17]} (28. Nxa6 $11 {keeps the balance.} h6 29. Kg3) 28... Bb3 {[%emt 0:05:01]} (28... Rb8 $17 29. Rxf7 Rb4 30. Nc3+ Kc6) 29. Rxa6 {[%emt 0:13:43]} Bxa4 {[%emt 0:01:40]} 30. Rxa4 {[%emt 0:00:02]} Ke5 {[%emt 0:04:43]} 31. Ke2 $11 {[%emt 0:03:08]} Rb8 {[%emt 0:28:01]} 1/2-1/2

[Event "WWRR IM 2018"]
[Site "Wachtebeke"]
[Date "2018.02.12"]
[Round "5"]
[White "Roels, Frederik"]
[Black "Moens, Patrick"]
[Result "0-1"]
[ECO "B98"]
[WhiteElo "1914"]
[BlackElo "1870"]
[Annotator "NA RC"]
[PlyCount "104"]
[EventDate "2018.??.??"]
[EventCountry "BEL"]
[SourceTitle "playchess.com"]
[Source "ChessBase"]
[SourceQuality "1"]
[TimeControl "40/5400+30:900+30"]

{[%evp 8,104,24,33,18,16,33,18,25,-9,32767,32767,32767,32767,0,-15,-22,-223,-155,-255,-270,-306,-37,-40,-47,-78,-94,-507,-508,-494,-196,-212,-223,-210,-219,-308,-310,-333,-366,-384,-452,-468,-550,-658,-660,-718,-710,-652,-660,-652,-341,-398,-407,-565,-591,32767,-660,-642,-643,-820,-724,-912,-980,-872,-1130,-2340,-1247,-957,-791,-744,-729,-799,-781,-728,-812,-777,-810,-1029,-1754,-1437,-877,-856,-972,-979,-708,-708,-914,-822,-870,-851,-940,-1004,-927,-981,-1024,-936,-1165,-1091,-12842]} 1. e4 {[%emt 0:00:00]} c5 {[%emt 0:00:08]} 2. Nf3 {[%emt 0:00:00]} d6 {[%emt 0:00:15]} 3. d4 {[%emt 0:00:00]} cxd4 {[%emt 0:00:05]} 4. Nxd4 {[%emt 0:00:00]} Nf6 {[%emt 0:00:11]} 5. Nc3 {[%emt 0:00:00]} a6 {[%emt 0:00:05]} 6. Bg5 {[%emt 0:00:35]} e6 {[%emt 0:00:29]} 7. f4 {[%emt 0:00:07]} Be7 {[%emt 0:00:05]} 8. Qe2 {[%emt 0:00:48]} h6 {[%emt 0:02:20]} 9. Bxf6 {[%emt 0:00:33] B98: Sicilian Najdorf: 6 Bg5 e6 7 f4 Be7, sidelines} Bxf6 {[%emt 0:00:19]} 10. O-O-O {[%emt 0:00:14]} Qc7 {[%emt 0:00:57]} 11. h4 {[%emt 0:00:31]} (11. Qd2 Bd7 12. Kb1 b5 13. g4 b4 14. Nce2 Nc6 15. Nf3 Be7 16. h4 a5 {½-½ (48) Jobava,B (2669)-Yilmaz,M (2622) Izmir 2016}) 11... Nc6 {[%emt 0:03:33]} 12. Qc4 $2 $146 {[%emt 0:05:31]} (12. Nb3 $15) ({Predecessor:} 12. Nxc6 bxc6 13. Rh3 Rb8 14. b3 g5 15. e5 dxe5 16. fxg5 Be7 {1-0 (36) Hossain,E (2432)-Dao,T (2463) Ashkhabad 2017}) 12... d5 {[%emt 0:04:42]} 13. Qa4 {[%emt 0:03:24]} (13. Nxe6 {keeps fighting.} fxe6 14. exd5 Bxc3 15. bxc3 exd5 16. Re1+ Kd8 17. Qxd5+ Bd7 18. g3) 13... Bxd4 {[%emt 0:05:38]} ({Much less strong is} 13... Qxf4+ 14. Kb1 $17) 14. Rxd4 {[%emt 0:01:02]} Bd7 $2 {[%emt 0:01:32]} ({Not} 14... Qxf4+ 15. Rd2 $17) (14... b5 $19 15. Bxb5 axb5 16. Qxa8 Nxd4) 15. Rd2 {[%emt 0:01:41]} d4 {[%emt 0:03:14]} 16. Ne2 {[%emt 0:01:26] [#]} d3 $1 {[%emt 0:04:15]} 17. cxd3 $2 {[%emt 0:04:13]} (17. Ng1 $17) 17... Nb4+ $1 {[%emt 0:03:12]} 18. Rc2 {[%emt 0:00:39]} Nxc2 $2 {[%emt 0:03:33]} ({Nicht} 18... Bxa4 19. Rxc7 Nxd3+ 20. Kb1 $17) (18... Rc8 19. Rxc7 Rxc7+ 20. Nc3 Bxa4) 19. Qxc2 {[%emt 0:00:08]} Qa5 {[%emt 0:01:17]} 20. Nc3 {[%emt 0:00:41]} b5 {[%emt 0:02:08]} 21. a3 {[%emt 0:00:11]} (21. Kb1 $142) 21... Qb6 {[%emt 0:00:29]} 22. Qd2 {[%emt 0:00:39]} a5 {[%emt 0:01:04]} 23. Kd1 {[%emt 0:04:28]} b4 {[%emt 0:00:16]} 24. Nb1 {[%emt 0:00:09]} Qd4 {[%emt 0:00:49]} 25. g4 {[%emt 0:01:50]} Ba4+ {[%emt 0:00:24]} 26. Ke2 {[%emt 0:00:06]} Rc8 {[%emt 0:00:26]} 27. Kf3 {[%emt 0:00:52]} Rc2 {[%emt 0:00:59]} 28. Qe3 {[%emt 0:00:14]} Qxe3+ {[%emt 0:05:41]} 29. Kxe3 {[%emt 0:00:05]} Rxb2 {[%emt 0:00:12]} 30. Nd2 {[%emt 0:00:24]} (30. Be2 $142) 30... bxa3 {[%emt 0:00:40]} 31. Be2 {[%emt 0:00:18]} a2 {[%emt 0:07:13]} 32. Ra1 {[%emt 0:00:12]} Bb5 {[%emt 0:02:31]} 33. e5 {[%emt 0:01:52]} O-O {[%emt 0:02:09]} 34. Nc4 {[%emt 0:01:18]} Bxc4 {[%emt 0:00:21]} 35. dxc4 {[%emt 0:00:04]} Rd8 {[%emt 0:01:45]} 36. f5 {[%emt 0:00:18]} exf5 {[%emt 0:01:20]} 37. gxf5 {[%emt 0:00:05]} Re8 {[%emt 0:00:37]} 38. Bd3 {[%emt 0:00:21]} Rxe5+ {[%emt 0:00:24]} 39. Kd4 {[%emt 0:00:05]} f6 {[%emt 0:01:35]} 40. c5 {[%emt 0:00:15]} Kf8 {[%emt 0:21:18]} 41. Bc4 {[%emt 0:16:20]} Rxf5 {[%emt 0:01:27]} 42. Bxa2 {[%emt 0:00:10]} Rb4+ {[%emt 0:00:13]} 43. Kd3 {[%emt 0:01:31]} Rxc5 {[%emt 0:00:16]} 44. Rh1 {[%emt 0:01:15]} Rh5 {[%emt 0:01:41]} 45. Rc1 {[%emt 0:00:26]} Rb7 {[%emt 0:01:18]} 46. Rc8+ {[%emt 0:00:24]} Ke7 {[%emt 0:00:11]} 47. Rc4 {[%emt 0:01:10]} Re5 {[%emt 0:01:56]} 48. Rg4 {[%emt 0:00:34]} Rd7+ {[%emt 0:00:19]} 49. Kc3 {[%emt 0:00:39]} Rc5+ {[%emt 0:01:07]} 50. Kb2 {[%emt 0:00:30]} Rb7+ {[%emt 0:00:55]} 51. Ka3 {[%emt 0:00:12]} Rc3+ {[%emt 0:00:30]} 52. Ka4 {[%emt 0:00:07] [#]} Rb4+ $19 {[%emt 0:00:17]} 0-1